Cogmind - Beta 14 *** ADVENTURER MODE // 2024.08.18 @ 20:16:28 Player: Bob Result: Self-destructed Performance ------------- Evolutions (4) 2000 Regions Visited (9) 1800 Robots Destroyed (98) 490 Value Destroyed (4204) 4204 Prototype IDs (8) 160 Alien Tech Used (0) 0 Bonus (3103) 3103 TOTAL SCORE: 11757 Bonus ------- High Alert Combat Kills 64 Follower Combat Kills 1753 Network Hubs Disabled 200 Registered with UFD 300 Built Enhanced Grunts 300 Met R17 at Cetus 500 Friendly Fire -14 Cogmind --------- Core Integrity 268/850 Matter 159/300 Energy 100/100 System Corruption 8% Temperature Cool (9) Movement Treading (160) Location -6/Hub_04(d) Parts ------- > --- POWER (2) -------- (None) > --- PROPULSION (4) --- Centrium Heavy Treads (fused) Centrium Heavy Treads > --- UTILITY (5) ------ Advanced Heat Sink Large Storage Unit Enhanced Optical Array Advanced Signal Interpreter Centrium Medium Armor Plating > --- WEAPON (4) ------- Ion Burst Cannon Magnetic Acceleration Cannon Power Maul > --- INVENTORY (15) --- Improved Thermal Generator Advanced Heat Sink Advanced Terrain Scanner Advanced Terrain Scan Processor Armor Integrity Analyzer Centrium Medium Armor Plating High-powered Tractor Beam Advanced Assault Cannon Advanced Assault Cannon Magnetic Acceleration Cannon Long-range Missile Launcher Peak State ------------ > --- POWER ------------ Neutrino Core Quantum Reactor > --- PROPULSION ------- Centrium Heavy Treads Centrium Heavy Treads > --- UTILITY ---------- Advanced Heat Sink Large Storage Unit Enhanced Optical Array Advanced Signal Interpreter Centrium Medium Armor Plating > --- WEAPON ----------- Magnetic Acceleration Cannon Antimatter Cannon Guided EMP Blaster > --- INVENTORY -------- Improved Thermal Generator Advanced Heat Sink Advanced Terrain Scanner Advanced Terrain Scan Processor Armor Integrity Analyzer Centrium Medium Armor Plating Centrium Medium Armor Plating High-powered Tractor Beam Ion Burst Cannon Advanced Assault Cannon Advanced Assault Cannon Magnetic Acceleration Cannon Long-range Missile Launcher [Rating: 105] Favorites ----------- Power Light Angular Momentum Engine Engine Light Angular Momentum Engine Power Core Fission Core Reactor Quantum Reactor Propulsion Light Treads Treads Light Treads Leg Carbon-fiber Leg Wheel Subdweller Monowheel Utility Large Storage Unit Device Improved Terrain Scanner Storage Large Storage Unit Processor Signal Interpreter Hackware Improved Hacking Suite Protection Layered Light Armor Plating Weapon Battle Cannon Energy Gun Gatling Laser Energy Cannon Ion Burst Cannon Ballistic Gun Assault Rifle Ballistic Cannon Battle Cannon Launcher Guided EMP Blaster Special Weapon Flamer Impact Weapon Power Maul Slashing Weapon Mining Claw Piercing Weapon Heavy Pick Build | -11 -10 -10 -8 -8 -6 -6 -6 -6 -6 ------- Run | Yrd Mat Sub Rec Scr Fac Ext Cet Arc Hub Slots Evolved 8 | . . . . . 8 . . . . Power 1 | . . . . . 1 . . . . Propulsion 2 | . . . . . 2 . . . . Utility 3 | . . . . . 3 . . . . Weapon 2 | . . . . . 2 . . . . Parts Attached 138 | 5 9 26 5 5 63 10 6 2 7 Power 22 | 1 1 2 1 1 11 2 1 1 1 Engine 17 | 1 1 2 1 1 9 2 . . . Core 3 | . . . . . 2 . . 1 . Reactor 2 | . . . . . . . 1 . 1 Propulsion 32 | 2 . 3 3 3 15 4 2 . . Treads 20 | 2 . . 3 3 6 4 2 . . Leg 10 | . . 1 . . 9 . . . . Wheel 2 | . . 2 . . . . . . . Hover . | . . . . . . . . . . Flight . | . . . . . . . . . . Utility 32 | 1 3 . . 1 19 4 2 1 1 Device 12 | . . . . 1 9 1 . 1 . Storage 3 | 1 2 . . . . . . . . Processor 6 | . 1 . . . 3 2 . . . Hackware 1 | . . . . . . . 1 . . Protection 10 | . . . . . 7 1 1 . 1 Artifact . | . . . . . . . . . . Weapon 52 | 1 5 21 1 . 18 . 1 . 5 Energy Gun 5 | . . 1 . . 4 . . . . Energy Cannon 3 | . . . . . 2 . . . 1 Ballistic Gun 12 | 1 5 4 . . 2 . . . . Ballistic Cannon 18 | . . 9 1 . 5 . 1 . 2 Launcher 1 | . . . . . . . . . 1 Special Weapon 3 | . . 2 . . 1 . . . . Impact Weapon 3 | . . . . . 2 . . . 1 Slashing Weapon 6 | . . 5 . . 1 . . . . Piercing Weapon 1 | . . . . . 1 . . . . Special Melee Weapon . | . . . . . . . . . . Unidentified Prototypes 8 | . . . . . 5 . 2 . 1 Corrupted Parts 1 | . . . . . . . 1 . . System Corruption 3 | . . . . . . . 3 . . Parts Lost 33 | . . 7 . . 16 3 . . 7 Power 9 | . . 2 . . 3 2 . . 2 Propulsion 10 | . . 3 . . 6 1 . . . Utility 5 | . . . . . 4 . . . 1 Weapon 9 | . . 2 . . 3 . . . 4 Highest Loss Streak 8 | . . 2 . . 8 2 . . 5 To Critical Strikes . | . . . . . . . . . . Average Slot Usage (%) 93 | . 87 89 92 99 87 97 97 86 85 Engine 11 | . 14 12 13 14 6 11 11 1 . Treads 22 | . 28 17 18 27 18 24 23 13 13 Leg 1 | . . 1 . . 5 . . . . Device 5 | . . . . 5 14 6 2 5 6 Storage 11 | . 14 14 14 14 6 6 6 6 6 Processor 9 | . 5 14 14 8 3 13 13 13 13 Protection 1 | . . . . . 5 6 6 6 6 Ballistic Gun 2 | . 25 3 . . . . . . . Ballistic Cannon 20 | . . 16 28 28 10 20 25 26 23 Slashing Weapon 1 | . . 5 . . 1 . . . . Peak Build Rating 105 | 5 7 14 14 22 74 68 103 104 105 Average Rating 30 | 3 6 9 11 18 58 63 78 103 102 On Entrance 40 | . 5 7 14 13 22 68 67 103 104 Naked Turns . | . . . . . . . . . . Heaviest Build 96 | 12 29 31 31 38 84 79 88 94 96 Greatest Support 160 | 40 40 40 40 40 118 101 160 160 160 Greatest Overweight (x) 10 | . . 10 10 1 1 1 . . . Average Overweight (x) . | . . . . . . . . . . Largest Inventory Capacity 15 | 8 15 15 15 15 15 15 15 15 15 Average Capacity 14 | 6 11 15 15 15 15 15 15 15 15 Most Carried 15 | 3 8 15 15 15 15 15 15 14 15 Average Carried 12 | . 3 13 14 11 13 13 14 13 13 Final Capacity 15 | 8 15 15 15 15 15 15 15 15 15 Final Carried 15 | . 8 13 15 12 15 15 14 14 11 Class Distribution -------------------- 40% | Commander-Mutant 31% | Mutant 8% | Tank 8% | Scavenger-Tank 5% | Scavenger-Mutant 3% | Gunner Dominant Class ---------------- Mutant | -10/Materials Mutant | -10/Subcaves Commander-Mutant | -8/Recycling Commander-Mutant | -8/Scraptown Tank | -6/Factory Gunner | -6/Extension Hacker-Tank | -6/Cetus Scavenger-Tank | -6/Archives Scavenger-Tank | -6/Hub_04(d) Resources | -11 -10 -10 -8 -8 -6 -6 -6 -6 -6 ----------- Run | Yrd Mat Sub Rec Scr Fac Ext Cet Arc Hub Matter Collected 3576 | 141 247 681 253 50 813 636 338 62 355 Remotely 20 | . . . . . 20 . . . . Salvage Created 3452 | . 123 635 334 . 1590 231 79 39 421 Parts 174 | . 7 43 19 . 78 7 2 2 16 Haulers Intercepted 2 | . 1 . . . 1 . . . . Recyclers Shooed 2 | . . . 1 . . 1 . . . Parts Field Recycled . | . . . . . . . . . . Retrieved Matter . | . . . . . . . . . . Parts Self-Destructed 21 | . . 21 . . . . . . . Prevented . | . . . . . . . . . . Kills | -11 -10 -10 -8 -8 -6 -6 -6 -6 -6 ------- Run | Yrd Mat Sub Rec Scr Fac Ext Cet Arc Hub Combat Hostiles Destroyed 84 | . 3 22 4 . 35 6 2 1 11 Melee 12 | . . . . . 10 . . . 2 Guns 10 | . 3 7 . . . . . . . Cannons 59 | . . 15 4 . 23 5 2 1 9 AOE 1 | . . . . . 1 . . . . Classes Destroyed 17 | . 3 3 4 . 4 1 . . 2 Worker 2 | . . . . . 1 . . . 1 Builder 1 | . . . 1 . . . . . . Hauler 2 | . 1 . . . 1 . . . . Recycler 2 | . . . 2 . . . . . . Turret 2 | . . 2 . . . . . . . Watcher 5 | . 1 . . . 4 . . . . Swarmer 18 | . 3 7 . . 8 . . . . Grunt 22 | . . 2 . . 13 3 . . 4 Brawler 1 | . . . 1 . . . . . . Duelist 2 | . . . . . 1 . . . 1 Sentry 12 | . . . 3 . 4 2 . 1 2 Specialist 2 | . . . . . . . . . 2 Hunter 4 | . . . . . 3 . 1 . . Programmer 6 | . . . . . 6 . . . . Heavy 1 | . . . . . . . . . 1 Behemoth 1 | . . . . . . 1 . . . Cetus Guard 1 | . . . . . . . 1 . . Lightning 1 | . . . . . . . . . 1 Subdweller 13 | . . 13 . . . . . . . Best Kill Streak 5 | . 3 4 5 . 4 2 1 1 3 Combat Bots Only 4 | . 3 4 2 . 4 2 1 1 3 Max Kills in Single Turn 2 | . 1 1 2 . 2 1 1 1 2 Gunslinging . | . . . . . . . . . . Exploded 1 | . . . . . 1 . . . . Melee 1 | . . . . . 1 . . . 1 Uniques/NPCs Destroyed . | . . . . . . . . . . Combat | -11 -10 -10 -8 -8 -6 -6 -6 -6 -6 -------- Run | Yrd Mat Sub Rec Scr Fac Ext Cet Arc Hub Hostile Shots Fired 865 | . 22 164 10 . 397 70 5 6 191 Missed 266 | . 5 59 5 . 110 22 2 2 61 Damage Taken 7789 | . 95 1157 59 . 3817 529 40 76 2016 Core 815 | . 10 210 13 . 473 26 . . 83 Absorbed by Shields 200 | . . . . . 13 148 39 . . Ignored by Resistances 2270 | . 34 335 17 . 1087 192 21 22 562 Core Remaining (%) 53 | 100 . . . 6 . . . . . Volleys Fired 213 | . 25 91 9 . 36 18 11 2 21 Largest 4 | . 2 2 2 . 3 3 4 4 4 Hottest 215 | . 40 120 78 . 215 159 199 199 199 Shots Fired 472 | . 35 148 18 . 93 54 43 9 72 Gun 78 | . 35 39 . . 4 . . . . Cannon 389 | . . 104 18 . 89 54 43 9 72 Launcher . | . . . . . . . . . . Special 5 | . . 5 . . . . . . . Kinetic 437 | . 35 132 18 . 78 54 43 9 68 Thermal 24 | . . 5 . . 15 . . . 4 Explosive . | . . . . . . . . . . Electromagnetic 11 | . . 11 . . . . . . . Robot Hit Streak 37 | . 8 25 10 . 13 34 37 5 13 Robot Miss Streak 4 | . 3 3 1 . 4 1 1 2 1 Penetration Max . | . . . . . . . . . . Secondary Targets 1 | . . 1 . . . . . . . Max Gunslinging Chain 1 | . . 1 . . . . . . . Shots Hit Robots 440 | . 25 123 14 . 121 50 31 6 70 Core Hits 172 | . 7 42 7 . 62 15 14 5 20 Critical Kills . | . . . . . . . . . . Critical Parts Destroyed 2 | . . . . . 1 1 . . . Critical Strikes 19 | . . 3 1 . 9 2 . . 4 Burn 1 | . . 1 . . . . . . . Blast 13 | . . 2 1 . 5 1 . . 4 Smash 2 | . . . . . 1 1 . . . Sever 3 | . . . . . 3 . . . . Melee Attacks 114 | . . 34 . . 64 3 . . 13 Impact 28 | . . . . . 12 3 . . 13 Slashing 85 | . . 34 . . 51 . . . . Piercing 1 | . . . . . 1 . . . . Sneak Attacks 1 | . . . . . 1 . . . . Combat Hostiles . | . . . . . . . . . . Follow-up Attacks 1 | . . . . . 1 . . . . Damage Inflicted 11982 | . 267 1733 307 . 4286 1527 1017 255 2590 Guns 675 | . 267 381 . . 27 . . . . Cannons 8025 | . . 1274 307 . 1946 1427 1017 255 1799 Explosions 238 | . . 34 . . 204 . . . . Melee 3000 | . . . . . 2109 100 . . 791 Ramming . | . . . . . . . . . . Kinetic 8024 | . 267 1507 307 . 1508 1427 1017 255 1736 Thermal 801 | . . 78 . . 660 . . . 63 Explosive . | . . . . . . . . . . Electromagnetic 157 | . . 148 . . 9 . . . . Impact 1397 | . . . . . 506 100 . . 791 Slashing 1564 | . . . . . 1564 . . . . Piercing 39 | . . . . . 39 . . . . Highest Corruption 8 | . . . . . . . 3 3 8 Average Corruption 3 | . . . . . . . 3 3 3 Corruption Purged . | . . . . . . . . . . Corruption Blocked . | . . . . . . . . . . Effects 22 | . . . . . . . 1 5 16 Message Errors 9 | . . . . . . . . 2 7 Matter Fused 5 | . . . . . . . . 1 4 Heat Flow Errors 1 | . . . . . . . . . 1 Energy Discharges 2 | . . . . . . . . 1 1 Parts Fused 1 | . . . . . . . . . 1 Data Loss (major) 1 | . . . . . . . 1 . . Misfires 3 | . . . . . . . . 1 2 Overload Shots . | . . . . . . . . . . Overflow Damage 212 | . . 20 5 . 99 34 . . 54 Projectiles 44 | . . 14 5 . 24 1 . . . Explosions 14 | . . 6 . . 8 . . . . Melee 154 | . . . . . 67 33 . . 54 Knockbacks 55 | . . 8 5 . 19 5 1 . 17 Impact 9 | . . . . . 4 . . . 5 Kinetic 42 | . . 8 5 . 14 5 1 . 9 Secondary 4 | . . . . . 1 . . . 3 Self-Inflicted Damage 170 | . . 29 . . 141 . . . . Shots 4 | . . 1 . . 3 . . . . Rammed . | . . . . . . . . . . Targets Rammed . | . . . . . . . . . . Kicked . | . . . . . . . . . . Crushed . | . . . . . . . . . . Highest Temperature 402 | . . 4 18 . 396 233 376 183 402 Average Temperature 114 | . . 4 6 . 110 85 159 97 130 Received Heat Transfer 2788 | . . 345 9 . 1714 201 . 9 510 Effects 7 | . . . . . 2 . 3 . 2 Shutdowns 3 | . . . . . 1 . . . 2 Energy Bleed 1 | . . . . . 1 . . . . Interference 3 | . . . . . . . 3 . . Siege Activations . | . . . . . . . . . . Robots Corrupted 2 | . . . . . 1 1 . . . Combat Hostiles 2 | . . . . . 1 1 . . . Parts Fried 5 | . . 1 . . 4 . . . . Impact Corruptions 10 | . . . . . 5 1 . . 4 Robots Melted . | . . . . . . . . . . Combat Hostiles . | . . . . . . . . . . Parts Melted 1 | . . 1 . . . . . . . Heat Transferred 1230 | . . 530 . . 625 . . . 75 Parts Sabotaged . | . . . . . . . . . . Parts Stolen . | . . . . . . . . . . Parts Stripped . | . . . . . . . . . . Power Chain Reactions 2 | . . 1 . . 1 . . . . Alert | -11 -10 -10 -8 -8 -6 -6 -6 -6 -6 ------- Run | Yrd Mat Sub Rec Scr Fac Ext Cet Arc Hub Peak Influence 520 | . 85 . 84 . 311 520 423 291 478 Initial 253 | . . . . . . 46 253 108 84 Average 102 | . 25 . 18 . 61 243 342 259 306 Maximum Alert Level 2 | . . . . . 1 2 2 1 2 Low Security (%) 79 | 100 100 . 100 . 93 60 . 17 10 Level 1 17 | . . . . . 6 14 98 82 74 Level 2 3 | . . . . . . 25 1 . 14 Level 3 . | . . . . . . . . . . Level 4 . | . . . . . . . . . . Level 5 . | . . . . . . . . . . High Security . | . . . . . . . . . . Max Security . | . . . . . . . . . . Squads Dispatched 18 | . 1 . . . 7 3 1 . 6 Investigation 4 | . 1 . . . . 2 1 . . Extermination 3 | . . . . . 3 . . . . Reinforcement 8 | . . . . . 4 1 . . 3 Assault . | . . . . . . . . . . Garrison 3 | . . . . . . . . . 3 Intercept . | . . . . . . . . . . Searches Triggered . | . . . . . . . . . . Construction Impeded . | . . . . . . . . . . Haulers Reinforced 1 | . . . . . 1 . . . . Active Scanning Responses . | . . . . . . . . . . Cargo Convoy Interrupts . | . . . . . . . . . . Stealth | -11 -10 -10 -8 -8 -6 -6 -6 -6 -6 --------- Run | Yrd Mat Sub Rec Scr Fac Ext Cet Arc Hub Distress Signals 10 | . . . . . 4 3 2 . 1 Communications Jammed . | . . . . . . . . . . Distress Signals . | . . . . . . . . . . Times Spotted 170 | . 10 28 9 . 48 21 13 7 34 Peak Tracking Total 10 | . 3 6 3 . 6 6 5 2 10 Tactical Retreats 14 | . 1 3 . . 3 5 . . 2 Traps | -11 -10 -10 -8 -8 -6 -6 -6 -6 -6 ------- Run | Yrd Mat Sub Rec Scr Fac Ext Cet Arc Hub Traps Triggered 6 | . . 1 . . 5 . . . . Indirectly . | . . . . . . . . . . Trap Hack Attempts . | . . . . . . . . . . Triggered . | . . . . . . . . . . Disarmed . | . . . . . . . . . . Reprogrammed . | . . . . . . . . . . Reused . | . . . . . . . . . . Traps Extracted . | . . . . . . . . . . Installed . | . . . . . . . . . . Triggered . | . . . . . . . . . . Machines | -11 -10 -10 -8 -8 -6 -6 -6 -6 -6 ---------- Run | Yrd Mat Sub Rec Scr Fac Ext Cet Arc Hub Machines Disabled 14 | . . 2 . . 5 3 . 2 2 Max in Single Turn 2 | . . 1 . . 2 . . . 1 Garrison Access 3 | . . . . . 2 . . . 1 Network Hub 1 | . . . . . . . . . 1 Energy Cycler 2 | . . . . . . 2 . . . Machines Repaired . | . . . . . . . . . . Machines Dismantled . | . . . . . . . . . . Machines Sabotaged . | . . . . . . . . . . Overloaded Fab Kills . | . . . . . . . . . . Hacking | -11 -10 -10 -8 -8 -6 -6 -6 -6 -6 --------- Run | Yrd Mat Sub Rec Scr Fac Ext Cet Arc Hub Machines Accessed 16 | . 1 . . 1 5 5 3 . 1 Terminals 11 | . 1 . . . 2 5 3 . . Fabricators . | . . . . . . . . . . Repair Stations 1 | . . . . . 1 . . . . Recycling Units . | . . . . . . . . . . Scanalyzers . | . . . . . . . . . . Garrison Access 3 | . . . . . 2 . . . 1 Total Hacks 27 | . 1 . . 1 9 9 5 . 2 Successful 15 | . 1 . . 1 5 5 2 . 1 Failed 12 | . . . . . 4 4 3 . 1 Catastrophic 4 | . . . . . 1 2 1 . . Database Lockouts . | . . . . . . . . . . Manual 1 | . . . . . . . 1 . . Terminals 19 | . 1 . . . 4 9 5 . . Fabricators . | . . . . . . . . . . Repair Stations 2 | . . . . . 2 . . . . Recycling Units . | . . . . . . . . . . Scanalyzers . | . . . . . . . . . . Garrison Access 5 | . . . . . 3 . . . 2 Terminal Hacks 10 | . 1 . . 1 1 5 2 . . Record 4 | . . . . 1 . 1 2 . . Open Door 5 | . . . . . 1 4 . . . Hauler Manifests 1 | . 1 . . . . . . . . Fabricator Hacks . | . . . . . . . . . . Repair Station Hacks 2 | . . . . . 2 . . . . Scan Component 1 | . . . . . 1 . . . . Repair 1 | . . . . . 1 . . . . Recycling Unit Hacks . | . . . . . . . . . . Scanalyzer . | . . . . . . . . . . Garrison Access Hacks 3 | . . . . . 2 . . . 1 Seal Access 3 | . . . . . 2 . . . 1 Unauthorized Hacks . | . . . . . . . . . . Terminals . | . . . . . . . . . . Fabricators . | . . . . . . . . . . Repair Stations . | . . . . . . . . . . Recycling Units . | . . . . . . . . . . Scanalyzers . | . . . . . . . . . . Garrison Access . | . . . . . . . . . . Data Cores Recovered . | . . . . . . . . . . Used . | . . . . . . . . . . Hacking Detections 7 | . . . . . 1 3 2 . 1 Full Trace Events 3 | . . . . . . 2 1 . . Feedback Events . | . . . . . . . . . . Feedback Blocked . | . . . . . . . . . . Robot Schematics Acquired . | . . . . . . . . . . Robots Built . | . . . . . . . . . . Authchips . | . . . . . . . . . . Time . | . . . . . . . . . . Total Robot Build Rating . | . . . . . . . . . . Part Schematics Acquired . | . . . . . . . . . . Parts Built . | . . . . . . . . . . Authchips . | . . . . . . . . . . Time . | . . . . . . . . . . Total Part Build Rating . | . . . . . . . . . . Parts Repaired 1 | . . . . . 1 . . . . Time 50 | . . . . . 50 . . . . Parts Recycled . | . . . . . . . . . . Recycled Matter . | . . . . . . . . . . Retrieved Matter . | . . . . . . . . . . Retrieved Components . | . . . . . . . . . . Parts Scanalyzed . | . . . . . . . . . . Part Schematics Acquired . | . . . . . . . . . . Parts Damaged . | . . . . . . . . . . Bothacking | -11 -10 -10 -8 -8 -6 -6 -6 -6 -6 ------------ Run | Yrd Mat Sub Rec Scr Fac Ext Cet Arc Hub Used RIF Installer . | . . . . . . . . . . Robots Hacked . | . . . . . . . . . . Non-combat . | . . . . . . . . . . Combat . | . . . . . . . . . . Robot Hacks Applied . | . . . . . . . . . . Relay Couplers Released 3 | . . . . . 3 . . . . Machine Destruction 3 | . . . . . 3 . . . . Fabnet Peak Effective % . | . . . . . . . . . . Robots Rewired 21 | . . . 15 . . 6 . . . Allies Hacked . | . . . . . . . . . . Hacks Repelled . | . . . . . . . . . . Allies | -11 -10 -10 -8 -8 -6 -6 -6 -6 -6 -------- Run | Yrd Mat Sub Rec Scr Fac Ext Cet Arc Hub Total Allies 33 | . . . 15 . . 13 5 . . Largest Group 11 | . . . 11 10 10 11 6 6 5 Highest-Rated Group 636 | . . . 179 163 163 447 636 614 480 Highest-Rated Ally 159 | . . . 27 27 27 159 159 134 96 Total Orders . | . . . . . . . . . . Ally Attacks 268 | . . . 21 . 10 119 35 22 61 Total Damage 8771 | . . . 420 . 143 3700 1510 929 2069 Kills 50 | . . . 6 . . 20 10 3 11 Allies Corrupted 1 | . . . . . . . . . 1 Allies Melted . | . . . . . . . . . . Intel | -11 -10 -10 -8 -8 -6 -6 -6 -6 -6 ------- Run | Yrd Mat Sub Rec Scr Fac Ext Cet Arc Hub Robot Analysis Total . | . . . . . . . . . . Derelict Logs Recovered 7 | . . 2 . 5 . . . . . Drone Launches . | . . . . . . . . . . Drone Recoveries . | . . . . . . . . . . Exploration | -11 -10 -10 -8 -8 -6 -6 -6 -6 -6 ------------- Run | Yrd Mat Sub Rec Scr Fac Ext Cet Arc Hub Turns Passed 19266 | 59 1220 3640 1871 6690 3600 787 541 256 602 Spaces Moved 8814 | 41 578 1667 918 2534 1920 414 306 153 283 Core 234 | 14 . 139 81 . . . . . . Treads 7693 | 27 578 1243 697 2534 1458 414 306 153 283 Legs 662 | . . 200 . . 462 . . . . Wheels 225 | . . 85 140 . . . . . . Hover . | . . . . . . . . . . Flight . | . . . . . . . . . . Fastest Speed 50 | 50 160 110 110 155 120 160 160 160 160 Average Speed 170 | 122 160 194 188 165 157 160 160 160 160 Slowest Speed 550 | 160 160 550 550 250 245 240 160 160 160 Overloaded Moves . | . . . . . . . . . . Propulsion Burnouts . | . . . . . . . . . . Robots Hopped . | . . . . . . . . . . Cave-ins Triggered . | . . . . . . . . . . Exploration Rate (%) 69 | 4 88 90 98 89 45 57 79 99 50 Regions Visited 9 Branch Regions 7 Pre-discovered Areas 4 | . . 2 . 2 . . . . . Known Exits Taken 8 | . 1 1 1 1 1 1 1 1 . Unknown Exits Taken 1 | 1 . . . . . . . . . Scrap Searched 10 | . . 4 . 6 . . . . . Spaces Dug . | . . . . . . . . . . Terrain Destroyed 64 | . . 4 1 . 43 4 5 . 7 Melee . | . . . . . . . . . . Projectile 33 | . . . 1 . 16 4 5 . 7 AOE 31 | . . 4 . . 27 . . . . Terrain Rammed . | . . . . . . . . . . Walls Destroyed . | . . . . . . . . . . Machines Disabled . | . . . . . . . . . . Actions | -11 -10 -10 -8 -8 -6 -6 -6 -6 -6 --------- Run | Yrd Mat Sub Rec Scr Fac Ext Cet Arc Hub Total 12479 | 50 841 1845 1039 5036 2334 487 332 159 356 Wait 2860 | . 210 8 1 2474 141 2 . . 24 Move 8805 | 40 577 1666 917 2533 1919 413 305 152 283 Hop . | . . . . . . . . . . Pick Up 124 | 5 15 14 2 10 61 9 2 2 4 Fast Attach 14 | . . 1 3 2 4 . 3 . 1 Attach 67 | 5 3 8 . 1 39 6 . . 5 Detach 6 | . . 1 2 . 3 . . . . Swap 57 | . 6 17 2 2 20 4 3 2 1 Drop 89 | . 5 5 5 14 45 2 8 1 4 Fire 213 | . 25 91 9 . 36 18 11 2 21 Melee 113 | . . 34 . . 63 3 . . 13 Ram . | . . . . . . . . . . Kick . | . . . . . . . . . . Crush . | . . . . . . . . . . Escape Stasis 3 | . . . . . 3 . . . . Rewire 128 | . . . 98 . . 30 . . . Trap . | . . . . . . . . . . Miscellaneous . | . . . . . . . . . . Route ------- -11/Scrapyard -10/Materials (discovered 6 exits: [*Mat x3] / [*Min x2] / *Sub) -10/Subcaves (discovered 3 exits: *Mat x2 / *Rec) -8/Recycling (discovered 2 exits: *Fac / *Scr) -8/Scraptown (discovered 2 exits: *Fac x2) -6/Factory (discovered 2 exits: *Fac / *Ext) -6/Extension (discovered 3 exits: *Fac x2 / *Cet) -6/Cetus (discovered 3 exits: *Fac x2 / *Arc) -6/Archives (discovered 3 exits: *Fac / *Hub x2) -6/Hub_04(d) (discovered 2 exits: *Fac x2) History --------- Turn | Location | Event 7 | -11/Scrapyard | Discovered new exit (range 15) 60 | -11/Scrapyard | Entered Materials 182 | -10/Materials | Met 8R-AWN 184 | -10/Materials | Discovered new exit (range 7) 306 | -10/Materials | Build established: Mutant 323 | -10/Materials | Discovered new exit (range 16) 398 | -10/Materials | Discovered new exit (range 6) 691 | -10/Materials | Discovered new exit (range 13) 812 | -10/Materials | Discovered new exit (range 8) 1265 | -10/Materials | Discovered new exit (range 6) 1278 | -10/Materials | Identified exit to Subcaves 1280 | -10/Materials | Entered Subcaves 1345 | -10/Subcaves | Learned location of Zion (-6) 1345 | -10/Subcaves | Met a Zionite searching for "candidates" 1822 | -10/Subcaves | Shifting Twisted Machinery released Sub. Laser 1855 | -10/Subcaves | Shifting Twisted Machinery released Sub. Machine Gun 1996 | -10/Subcaves | Shifting Twisted Machinery released Scrap Shield 1998 | -10/Subcaves | Shifting Twisted Machinery released Multitool 2115 | -10/Subcaves | Discovered new exit (range 11) 2133 | -10/Subcaves | Identified exit to Materials 2210 | -10/Subcaves | Discovered exit to Materials (range 10) 2409 | -10/Subcaves | Learned 2 Materials zone layouts 2901 | -10/Subcaves | Ambushed by Subdwellers from Twisted Machinery 3643 | -10/Subcaves | Shifting Twisted Machinery released Hvy. Riot Gun 3662 | -10/Subcaves | Shifting Twisted Machinery released Shrapnel Trap 3992 | -10/Subcaves | Disturbed a concealed Subdweller 4232 | -10/Subcaves | Core integrity fell below 50% 4245 | -10/Subcaves | Discovered new exit (range 11) 4581 | -10/Subcaves | A swath of the cavern ceiling suddenly collapsed 4779 | -10/Subcaves | Core integrity fell below 20% 4919 | -10/Subcaves | Identified exit to Recycling 4920 | -10/Subcaves | Entered Recycling 5920 | -8/Recycling | Lost 4 allies 5932 | -8/Recycling | Build established: Commander-Mutant 6681 | -8/Recycling | Discovered new exit (range 15) 6745 | -8/Recycling | Scanned before Scraplab entrance 6769 | -8/Recycling | Entered Scraplab 6787 | -8/Recycling | Discovered new exit (range 3) 6788 | -8/Recycling | Identified exit to Scraptown 6791 | -8/Recycling | Entered Scraptown 6791 | -8/Scraptown | Accompanied by 10 allies 7023 | -8/Scraptown | Visited TADAMA 7140 | -8/Scraptown | Visited Spacefarers 7168 | -8/Scraptown | Visited Bundlers 7656 | -8/Scraptown | Visited Junk Repository 7749 | -8/Scraptown | Visited CR-KLE's Repair Center 7778 | -8/Scraptown | Visited The Evicted 7788 | -8/Scraptown | Visited Assassins FH 7856 | -8/Scraptown | Scanned Subdweller tech in exchange for log data 7859 | -8/Scraptown | Learned location of Armory (-4) 7861 | -8/Scraptown | Learned Research emergency access door positions 7864 | -8/Scraptown | Learned Research stockpile data 7866 | -8/Scraptown | Learned location of 1 exit from Upper Caves 7867 | -8/Scraptown | Learned location of 1 exit from Research 7932 | -8/Scraptown | Discovered new exit (range 13) 7968 | -8/Scraptown | Identified exit to Factory 8140 | -8/Scraptown | Visited UFD Registry 8140 | -8/Scraptown | Registered with UFD as "Protonrider" 8196 | -8/Scraptown | Visited Chapter 10 8248 | -8/Scraptown | Visited Scrapoid Research Area 8444 | -8/Scraptown | Delivered Scrap Shield to a Scientist 8505 | -8/Scraptown | Visited Scrapoid Pod Storage 8535 | -8/Scraptown | Visited Scrap Suit Storage 8561 | -8/Scraptown | Visited Junk Repository 8627 | -8/Scraptown | Visited Curators Association 8708 | -8/Scraptown | Discovered exit to Factory (range 5) 8906 | -8/Scraptown | Visited Cartography Club 13365 | -8/Scraptown | Visited Derelict Rescue Squad 13481 | -8/Scraptown | Entered Factory 13481 | -6/Factory | Accompanied by 10 allies 13481 | -6/Factory | Evolved 8 slots: Power x1, Propulsion x2, Utility x3, Weapon x2 13742 | -6/Factory | Lost 10 allies 14276 | -6/Factory | Build established: Scavenger-Mutant 14380 | -6/Factory | Lost 8 parts (2p3n3u) 14540 | -6/Factory | Repaired Broken Antimatter Cannon 15270 | -6/Factory | Build established: Scavenger-Tank 15663 | -6/Factory | Build established: Mutant 15928 | -6/Factory | Discovered new exit (range 6) 16000 | -6/Factory | Build established: Tank 16014 | -6/Factory | Identified exit to Factory 17010 | -6/Factory | Core integrity fell below 50% 17075 | -6/Factory | Discovered new exit (range 5) 17078 | -6/Factory | Identified exit to Extension 17081 | -6/Factory | Entered Extension 17150 | -6/Extension | Build established: Gunner 17275 | -6/Extension | Rescued A7 17320 | -6/Extension | Rescued a captive Derelict 17335 | -6/Extension | Rescued a captive Derelict 17345 | -6/Extension | Rescued a captive Derelict 17391 | -6/Extension | Rescued a captive Derelict 17423 | -6/Extension | Rescued a captive Derelict 17425 | -6/Extension | Rescued a captive Derelict 17532 | -6/Extension | Energy Cycler disabled 17533 | -6/Extension | Rescued a captive Derelict 17534 | -6/Extension | Rescued a captive Derelict 17535 | -6/Extension | Rescued a captive Derelict 17586 | -6/Extension | Spotted B-75 Beast 17590 | -6/Extension | Spotted B-75 Beast 17619 | -6/Extension | Lost 4 allies 17626 | -6/Extension | Allies destroyed B-75 Beast 17642 | -6/Extension | Destroyed B-75 Beast 17662 | -6/Extension | Lost 3 allies 17689 | -6/Extension | Discovered exit to Factory (range 19) 17820 | -6/Extension | Discovered new exit (range 22) 17822 | -6/Extension | Discovered exit to Factory (range 21) 17865 | -6/Extension | Identified exit to Cetus 17868 | -6/Extension | Entered Cetus 17868 | -6/Cetus | Accompanied by 3 allies (A7) 17873 | -6/Cetus | Acquired a Cetus Manufacturing Module code from A7 17883 | -6/Cetus | Spotted Cetus Guard 17886 | -6/Cetus | Spotted Cetus Guard 17888 | -6/Cetus | Spotted Cetus Guard 17891 | -6/Cetus | Destroyed Cetus Guard 17892 | -6/Cetus | Spotted Cetus Guard 17897 | -6/Cetus | Allies destroyed Cetus Guard 17905 | -6/Cetus | Build established: Tank 17908 | -6/Cetus | Allies destroyed Cetus Guard 17917 | -6/Cetus | Allies destroyed Cetus Guard 17943 | -6/Cetus | Discovered exit to Factory (range 22) 18115 | -6/Cetus | Started Cetus Manufacturing Module 18140 | -6/Cetus | Manufactured an Enhanced Grunt 18165 | -6/Cetus | Manufactured an Enhanced Grunt 18186 | -6/Cetus | Discovered new exit (range 22) 18190 | -6/Cetus | Manufactured an Enhanced Grunt 18215 | -6/Cetus | Manufactured an Enhanced Grunt 18219 | -6/Cetus | Identified exit to Archives 18240 | -6/Cetus | Manufactured an Enhanced Grunt 18250 | -6/Cetus | Spotted Cetus Guard 18251 | -6/Cetus | Spotted Cetus Guard 18251 | -6/Cetus | Spotted Cetus Guard 18253 | -6/Cetus | Spotted Cetus Guard 18260 | -6/Cetus | Allies destroyed Cetus Guard 18260 | -6/Cetus | Discovered exit to Factory (range 21) 18269 | -6/Cetus | Allies destroyed Cetus Guard 18272 | -6/Cetus | Allies destroyed Cetus Guard 18274 | -6/Cetus | Allies destroyed Cetus Guard 18289 | -6/Cetus | Met Revision 17 18409 | -6/Cetus | Entered Archives 18409 | -6/Archives | Accompanied by 6 allies (A7) 18458 | -6/Archives | Discovered new exit (range 22) 18476 | -6/Archives | Discovered exit to Factory (range 21) 18496 | -6/Archives | Unable to access archive contents 18538 | -6/Archives | Identified exit to Hub_04(d) 18562 | -6/Archives | Discovered exit to Hub_04(d) (range 21) 18596 | -6/Archives | Build established: Scavenger-Tank 18665 | -6/Archives | Entered Hub_04(d) 18665 | -6/Hub_04(d) | Accompanied by 5 allies 18694 | -6/Hub_04(d) | Spotted B-75 Beast 18708 | -6/Hub_04(d) | Allies destroyed B-75 Beast 18999 | -6/Hub_04(d) | Network Hub disabled 18999 | -6/Hub_04(d) | Discovered exit to Factory (range 8) 18999 | -6/Hub_04(d) | Discovered exit to Factory (range 15) 19005 | -6/Hub_04(d) | Garrison activated, responded to threat 19031 | -6/Hub_04(d) | Lost 3 allies 19066 | -6/Hub_04(d) | Spotted Lightning 19068 | -6/Hub_04(d) | Spotted Lightning 19167 | -6/Hub_04(d) | Destroyed Lightning 19245 | -6/Hub_04(d) | Spotted Lightning 19267 | -6/Hub_04(d) | Self-destructed Last Messages --------------- 19257_ Centrium Medium Armor Plating destroyed. 19257_ Slug penetrates Wall. 19257_ EMDS Slug penetrates Wall. 19258_ Wall collapses. 19258_ Acquired 51 matter. 19259_ EMDS Slug penetrates Wall. 19259_ Antimatter Cannon destroyed. 19261_ Penetrated by Slug. 19261_ K-01 Serf collects debris. 19261_ Penetrated by Slug. 19261_ Penetrated by EMDS Slug. 19263_ Y-54 Guardian destroyed. 19264_ Slug penetrates Wall. 19264_ EMDS Slug penetrates Wall. 19266_ Wall collapses. 19266_ Slug penetrates Wall. 19266_ K-01 Serf collects debris. 19267_ Slug penetrates Wall. 19267_ Antimatter Reactor destroyed. 19267_ Slug penetrates Wall. Map ----- +----------------------------------------------------+ | | | | | | | | | ?????????????????????????????????????????????????? | | ?????????????????????????????????????????????????? | | ??????????????????????????????????##########?????? | | ??????????????????????????????????# #?????? | | ??????????????????????????????????# """" % #?????? | | ??????????????????????????????????# """" #?????? | | ??????????????????????????????????# """" #?????? | | ??????????????????????????????????# """ #?????? | | ??????????????????????????????????# ??????? | | ??????????????????????????????????# #####?? | | ????????????????????????########### # #?? | | ????????????????????????# # ? " ### | | ????????????????????????# ##"#""###""""""" | | ????????????????????????# " =%! | | ????????????????????????# / * | | ????????????????????????# # [ | | ??????????????????????????????????# #""""""= """ | | ??????????????????????????????????# # """"""[""" | | ???????????????#######????????????#%! # " | | ???????????????# %;########?????#! " " ! * | | ???????????????# " % g[##*####### # " =!*! | | ???????????????# T hg=@k[=%%%= *# " %!%! | | ???????????????# ih;;h#%########## %# "! !]! | | ???????????????## ## Yh #?# =" " | | ????????????????# ## """" "#?# " "% | | ????????????????# ## """" T#?# """ | | ????????????????# ## """" "## =" | | ????????????????# ## """" ## =! !%! | | ???????????????? #;% ## %<% "" | | ????????????????# ##[! % % ## [* ""[!""""""" | | ????????????????# ##%* #"! "=%! " | | ????????????????# ###!##"#####"### ##"! [ " | | ????????????????# ## % ## # " " | | ???????????????? # ## # !% [ " ]] | | ???????????????? "% ## # "% % " ]] | | ?????????????? +% ## # " " ]] | | ?????????????### # %% ## ##""""/!"""" | | ???????????????###### ## *%! | | ????????????????????# ## ###### ##### | | ????????????????????# ## #????# #???? | | ????????????????????# ## #????? ????? | | ????????????????????# #?#+#???????????? | | ????????????????????# +???????????????? | | ????????????????????# # ??????????????? | | ????????????????????#######+##+### ?????????????? | | ??????????????????????????? ?????? "????????????? | +----------------------------------------------------+ Best States ------------- Heat Dissipation 65 Energy Generation 41 Energy Capacity 575 Matter Stores 300 Matter Capacity 300 Sight Range 22 Terrain Scan Range 16 Terrain Scan Density 110 Armor Coverage 225 Resistance: KI 30 Resistance: TH 20 Resistance: EX 20 Resistance: EM 20 Resistance: I 20 Resistance: S 20 Resistance: P 20 Evasion (%) 55 Core Analysis 6 Recoil Reduction 4 Offensive Hacking 22 Item Schematics ----------------- None Robot Schematics ------------------ None Fabricated ------------ Nothing Alien Tech Used ----------------- None Achievements -------------- Project G-00 Revising The Future Challenges ------------ None Game ------ Seed GyrokineticShrapnelDriver Manual? 0 Play Time 01:41:00 Cumulative 206.5 hours Start 2024.08.18 @ 17:37:47 End 2024.08.18 @ 20:16:28 Sessions 3 Manual Loads 0 Difficulty Adventurer Special Mode None Game No. 309 Rogue 241 Adventurer 68 Explorer 0 Win Type - Total 5 Types 2/1/0/2/0/0/0/0/0 Lore% 40 Gallery% 58 Achievement% 55 Wizard Run 0 Options --------- Layout 1 ASCII 0 Keyboard 0 Movement Arrows Keybinds 0 Fullscreen 1 Font 16/SmallcapsGlow Map View 55x38 Zoom Use 0% Tactical HUD 1 Map Filters NONE Filters NONE Steam 1 RUN: f2f0c00f-d3d7-4335-b666-22c4547a6a7c